bitfinex-derivatives/quotes_SOLF0:USTF0_20241203
["timestamp","ask_amount","ask_price","bid_price","bid_amount"]
[1733196239472,2.2,227.45,227.4,2.1984]
[1733196239876,2.2,227.45,227.41,2.20036779]
[1733196240072,2.2,227.45,227.42,2.20036779]
[1733196240384,2.2,227.45,227.39,6.52961668]
[1733196240683,2.2,227.45,227.4,2.20037352]
[1733196240981,2.2,227.45,227.41,2.20037352]
[1733196241184,2.2,227.45,227.42,2.20037352]
[1733196241479,2.2,227.45,227.39,6.5600728]
[1733196241680,2.2,227.45,227.4,2.20042818]
[1733196241880,2.2,227.45,227.41,2.20042818]
[1733196242179,2.2,227.45,227.42,2.20042818]
[1733196242380,2.2,227.45,227.43,2.20042818]
[1733196242576,2.2,227.45,227.4,6.5600728]
[1733196242780,2.2,227.45,227.41,2.20033224]
[1733196243083,2.2,227.45,227.43,0.03045612]
[1733196243381,2.2,227.45,227.43,0.03057671]
[1733196243382,2.198,227.44,227.43,0.03057671]
[1733196243579,2.198,227.44,227.43,2.23104749]
[1733196244376,2.2,227.45,227.43,2.20047078]
[1733196244581,2.22,227.44,227.38,11.38881668]
[1733196245085,4.4181,227.44,227.39,2.20066988]
[1733196245380,4.4181,227.44,227.38,11.38881668]
[1733196245381,6.52961668,227.42,227.36,2.1987]
[1733196245585,6.52961668,227.42,227.39,0.03063434]
[1733196245784,6.52961668,227.42,227.4,3.96147854]
[1733196245984,8.72781668,227.42,227.41,3.96147854]
[1733196246485,8.72781668,227.42,227.41,5.06189271]
[1733196248183,8.72781668,227.42,227.41,2.8610713]
[1733196248979,8.72781668,227.42,227.41,1.10041417]
[1733196249185,8.72781668,227.42,227.41,2.86125553]
[1733196252291,2.1985,227.4,227.35,2.1989]
[1733196252484,2.22,227.39,227.35,2.1989]
[1733196252889,2.22,227.38,227.35,2.1989]
[1733196253082,2.18990726,227.52,227.38,0.03074982]
[1733196253286,6.52961668,227.43,227.4,0.03082148]
[1733196253489,2.22,227.42,227.41,3.33234905]
[1733196253690,2.22,227.42,227.41,5.06234227]
[1733196253892,2.22,227.42,227.41,5.09316375]
[1733196254297,2.22,227.42,227.41,5.06234227]
[1733196254593,2.22,227.42,227.41,5.09319422]
[1733196254983,2.22,227.42,227.41,5.09318117]
[1733196255188,2.22,227.42,227.41,5.06234227]
[1733196255382,2.22,227.42,227.41,5.09318117]
[1733196255790,4.4182,227.42,227.41,5.09318117]
[1733196256696,4.4182,227.42,227.41,5.06234227]
[1733196257492,2.22,227.42,227.38,0.0308389]
[1733196257793,6.52961668,227.4,227.39,5.06296093]
[1733196258994,8.72801668,227.4,227.39,1.10064368]
[1733196261189,2.22,227.4,227.39,2.86158783]
[1733196262199,8.74961668,227.4,227.39,2.86158783]
[1733196263096,8.74961668,227.4,227.37,2.1986]
[1733196263296,8.74961668,227.4,227.38,2.86118758]
[1733196263496,8.74961668,227.4,227.39,1.10045676]
[1733196264899,8.74961668,227.4,227.39,2.86118312]
[1733196265296,8.74961668,227.4,227.39,1.10045676]
[1733196266901,8.74961668,227.4,227.37,2.1987]
[1733196267096,8.74961668,227.4,227.38,1.1004531]
[1733196267295,8.74961668,227.4,227.37,2.1987]
[1733196268793,2.22,227.4,227.37,2.1987]
[1733196273500,4.0298,227.53,227.36,6.52961668]
[1733196273713,6.52961668,227.46,227.42,2.1981]
[1733196273903,2.2,227.45,227.39,1.336]
[1733196274101,6.52961668,227.46,227.39,1.336]
[1733196274304,2.2,227.45,227.43,2.1981]
[1733196275909,2.2,227.44,227.43,2.1981]
[1733196276806,4.3914,227.68,227.43,6.52961668]
[1733196277006,6.52961668,227.53,227.45,6.52961668]
[1733196277206,4.3914,227.68,227.43,6.52961668]
[1733196277207,6.52961668,227.51,227.43,6.52961668]
[1733196277405,2.2,227.5,227.43,6.52961668]
[1733196277611,2.2,227.49,227.43,6.52961668]
[1733196278106,2.2,227.49,227.46,2.1977]
[1733196278510,2.2,227.49,227.43,6.52961668]
[1733196279309,2.2,227.49,227.46,2.1978]
[1733196279510,2.2,227.49,227.43,6.52961668]
[1733196279710,8.72721668,227.48,227.4,6.52961668]
[1733196279918,8.72721668,227.48,227.42,2.1982]
[1733196280115,8.72721668,227.48,227.39,1.336]
[1733196280314,8.72721668,227.48,227.41,6.52961668]
[1733196280610,2.1977,227.47,227.43,2.198]
[1733196281207,6.52961668,227.48,227.43,2.198]
[1733196281415,8.72721668,227.48,227.43,2.198]
[1733196281617,2.1976,227.48,227.43,2.198]
[1733196281813,2.1976,227.48,227.44,2.1979]
[1733196284223,2.2,227.49,227.44,2.1979]
[1733196284411,2.2,227.49,227.45,2.1979]
[1733196286118,4.3975,227.49,227.45,2.1979]
[1733196288913,2.2,227.49,227.45,2.1979]
[1733196289113,2.2,227.49,227.45,6.52961668]
[1733196289418,6.52961668,227.53,227.45,6.52961668]
[1733196289614,4.3972,227.52,227.45,6.52961668]
[1733196289818,2.2,227.52,227.45,6.52961668]
[1733196290214,4.3972,227.52,227.47,2.1977]
[1733196290820,2.1971,227.54,227.49,2.1975]
[1733196291021,2.1971,227.54,227.45,6.52961668]
[1733196291022,2.2,227.53,227.45,6.52961668]
[1733196291413,2.2,227.53,227.48,2.1975]
[1733196292615,4.3971,227.53,227.48,2.1975]
[1733196294319,2.2,227.53,227.45,6.52961668]
[1733196294522,2.2,227.53,227.47,6.52961668]
[1733196294916,2.2,227.53,227.49,2.1975]
[1733196296327,4.0351,227.64,227.47,6.52961668]
[1733196296527,6.52961668,227.57,227.52,2.1972]
[1733196296728,6.52961668,227.57,227.49,6.52961668]
[1733196296923,2.2,227.56,227.49,6.52961668]
[1733196297226,2.2,227.56,227.51,6.52961668]
[1733196297925,2.2,227.56,227.53,2.1971]
[1733196298221,6.52961668,227.58,227.53,2.1971]
[1733196298428,2.2,227.57,227.53,2.1971]
[1733196298926,2.2,227.57,227.39,1.336]
[1733196299123,2.1969,227.56,227.51,2.1972]
[1733196299324,6.52961668,227.54,227.47,6.52961668]
[1733196299824,2.1972,227.53,227.46,6.52961668]
[1733196300128,2.2,227.52,227.41,1.2682]
[1733196300423,8.72961668,227.52,227.49,2.1975]
[1733196300627,2.2,227.52,227.49,2.1975]
[1733196301330,2.1974,227.5,227.41,1.2682]
[1733196301529,2.1974,227.5,227.44,6.52961668]
[1733196301732,2.2,227.52,227.44,6.52961668]
[1733196301928,4.3973,227.52,227.46,6.52961668]
[1733196302932,4.3973,227.52,227.48,2.1976]
[1733196303232,2.2,227.52,227.46,6.52961668]
[1733196303629,2.2,227.52,227.49,2.1975]
[1733196305033,4.0351,227.64,227.46,6.52961668]
[1733196305227,6.52961668,227.56,227.48,6.52961668]
[1733196305430,2.2,227.55,227.5,6.52961668]
[1733196305623,2.2,227.54,227.41,1.2682]
[1733196305829,2.2,227.54,227.51,6.52961668]
[1733196306029,2.2,227.54,227.49,6.52961668]
[1733196306432,2.2,227.54,227.52,2.1971]
[1733196306635,2.2,227.54,227.49,6.52961668]
[1733196306831,2.2,227.54,227.53,2.1971]
[1733196307528,6.52961668,227.56,227.41,1.2682]
[1733196307832,2.2,227.55,227.48,6.52961668]
[1733196309924,2.2,227.55,227.52,2.1971]
[1733196311332,2.2,227.55,227.48,6.52961668]
[1733196311627,2.2,227.55,227.53,2.1971]
[1733196315130,2.2,227.55,227.5,6.52961668]
[1733196315329,2.2,227.55,227.54,2.197]
[1733196315532,2.2,227.55,227.54,8.72661668]
[1733196315735,45.72,227.6,227.57,2.1967]
[1733196315934,2.2,227.59,227.57,2.1967]
[1733196316831,2.2,227.59,227.54,6.52961668]
[1733196317032,2.2,227.59,227.56,2.1968]
[1733196317332,2.2,227.65,227.58,6.52961668]
[1733196317525,2.2,227.65,227.45,4.3957]
[1733196317526,2.2,227.65,227.63,2.1961]
[1733196318630,2.2,227.65,227.61,2.1963]
[1733196319139,2.2,227.65,227.6,6.52961668]
[1733196319335,2.2,227.65,227.62,2.1962]
[1733196320533,8.72531668,227.68,227.63,2.1961]
[1733196320736,2.2,227.67,227.63,2.1961]
[1733196322230,4.3958,227.67,227.63,2.1961]
[1733196322536,2.2,227.67,227.63,2.1961]
[1733196323535,2.6534,227.74,227.64,6.52961668]
[1733196323733,8.72961668,227.73,227.64,6.52961668]
[1733196323935,8.72961668,227.73,227.66,6.52961668]
[1733196324737,733.5460742,227.92,227.72,6.52961668]
[1733196324934,8.72961668,227.85,227.77,6.52961668]
[1733196325237,351.3641976,227.95,227.79,6.52961668]
[1733196325238,2.2,227.84,227.79,6.52961668]
[1733196325437,6.52961668,227.88,227.79,6.52961668]
[1733196325633,351.3641976,227.95,227.83,8.72381668]
[1733196325634,2.2,227.87,227.83,8.72381668]
[1733196325835,2.2,227.88,227.85,6.52961668]
[1733196326034,2.2,227.89,227.85,6.52961668]
[1733196326433,6.52961668,227.93,227.85,6.52961668]
[1733196326731,6.52961668,227.93,227.77,2.2]
[1733196326732,2.2,227.92,227.89,6.52961668]
[1733196326936,2.2,227.92,227.91,6.52961668]
[1733196328137,2.2,227.92,227.8,1.3861]
[1733196328434,2.2,227.92,227.87,6.52961668]
[1733196329832,2.2,227.92,227.82,2.1943]
[1733196330035,2.2,227.92,227.86,6.52961668]
[1733196330641,2.1936,227.9,227.86,6.52961668]
[1733196330835,2.1936,227.9,227.8,1.3861]
[1733196330836,2.2,227.92,227.84,6.52961668]
[1733196331031,6.52961668,227.91,227.84,6.52961668]
[1733196331935,2.1937,227.89,227.84,6.52961668]
[1733196332433,2.1937,227.89,227.78,1.3117]
[1733196332434,6.52961668,227.89,227.78,1.3117]
[1733196332636,2.1939,227.87,227.8,6.52961668]
[1733196332938,2.2,227.86,227.8,6.52961668]
[1733196334036,4.394,227.86,227.8,6.52961668]
[1733196334239,2.2,227.86,227.8,6.52961668]
[1733196334939,2.2,227.86,227.8,8.72411668]
[1733196335331,2.2,227.86,227.8,6.52961668]
[1733196335641,2.2,227.86,227.84,6.52961668]
[1733196338436,2.2,227.86,227.83,2.1942]
[1733196338641,2.2,227.86,227.83,8.72381668]
[1733196339041,2.2,227.86,227.83,6.52961668]
[1733196339936,2.2,227.86,227.8,2.1944]
[1733196340137,2.2,227.86,227.81,6.52961668]
[1733196340634,4.394,227.86,227.81,8.72401668]
[1733196341042,4.394,227.86,227.81,6.52961668]
[1733196341938,2.2,227.86,227.81,6.52961668]
[1733196342243,2.2,227.86,227.81,8.72401668]
[1733196342439,2.2,227.86,227.75,1.3222]
[1733196342645,2.2,227.86,227.8,6.52961668]
[1733196343043,2.2,227.86,227.74,1.3682]
[1733196343240,2.2,227.86,227.8,6.52961668]
[1733196343547,2.1941,227.84,227.8,6.52961668]
[1733196343943,4.394,227.86,227.8,6.52961668]
[1733196344242,2.2,227.86,227.8,6.52961668]
[1733196345844,2.1941,227.85,227.8,6.52961668]
[1733196348146,2.1941,227.85,227.68,0.03048233]
[1733196348147,6.52961668,227.84,227.68,0.03048233]
[1733196348345,6.52961668,227.82,227.75,6.52961668]
[1733196348546,2.2,227.81,227.75,6.52961668]
[1733196348944,2.2,227.81,227.65,1.3543]
[1733196349147,6.52961668,227.8,227.73,6.52961668]
[1733196349948,2.2,227.81,227.71,6.52961668]
[1733196349949,2.1949,227.76,227.71,6.52961668]
[1733196350249,2.2,227.75,227.65,1.4034]
[1733196350447,2.2,227.75,227.7,6.52961668]
[1733196350651,2.2,227.75,227.72,6.52961668]
[1733196352640,2.2,227.75,227.71,2.1954]
[1733196352848,2.2,227.75,227.71,6.52961668]
[1733196353550,4.395,227.75,227.71,6.52961668]
[1733196356261,2.2,227.75,227.71,6.52961668]
[1733196357954,4.395,227.75,227.71,6.52961668]
[1733196358555,2.2,227.75,227.69,6.52961668]
[1733196359855,2.1954,227.71,227.69,6.52961668]
[1733196360057,2.2,227.7,227.67,6.52961668]
[1733196360251,2.2,227.69,227.68,1.09897757]
[1733196360458,4.3956,227.69,227.65,6.52961668]
[1733196360652,2.2,227.69,227.66,1.09903869]
[1733196360960,2.2,227.69,227.67,1.09903869]
[1733196361155,2.2,227.69,227.65,6.52961668]
[1733196361156,4.3957,227.69,227.65,6.52961668]
[1733196361463,4.3957,227.69,227.66,1.09910537]
[1733196361666,4.3957,227.69,227.65,6.52961668]
[1733196361960,2.2,227.69,227.66,1.0991109]
[1733196362161,2.2,227.69,227.67,7.62870066]
[1733196362365,2.2,227.69,227.67,6.52961668]
[1733196362563,2.2,227.69,227.68,1.099028]
[1733196362764,2.2,227.69,227.67,6.52961668]
[1733196365069,2.2,227.69,227.68,2.1957]
[1733196365465,2.2,227.71,227.67,6.52961668]
[1733196365664,2.2,227.71,227.7,6.52961668]
[1733196366060,2.2,227.71,227.7,8.72511668]
[1733196368863,1.3891,227.78,227.69,6.52961668]
[1733196369169,2.2,227.77,227.69,6.52961668]
[1733196369467,2.2,227.77,227.69,8.72511668]
[1733196369468,2.1952,227.74,227.69,8.72511668]
[1733196370560,2.1952,227.73,227.69,6.52961668]
[1733196370761,2.2,227.72,227.69,6.52961668]
[1733196372071,2.2,227.72,227.71,6.52961668]
[1733196372267,2.2,227.72,227.71,8.72501668]
[1733196374268,2.2,227.72,227.71,2.1954]
[1733196374469,2.2,227.72,227.71,8.72501668]
[1733196375068,1.3224,227.79,227.71,6.52961668]
[1733196375372,2.2,227.78,227.76,6.52961668]
[1733196376571,2.2,227.78,227.76,8.72451668]
[1733196378670,2.1946,227.8,227.76,8.72451668]
[1733196378880,2.2,227.78,227.76,8.72451668]
[1733196379978,4.3946,227.8,227.76,8.72451668]
[1733196380279,2.2,227.8,227.77,2.1948]
[1733196380474,2.2,227.8,227.76,6.52961668]
[1733196381980,2.2,227.8,227.76,8.72451668]
[1733196384676,0.18259,227.81,227.79,2.1946]
[1733196384873,2.2,227.8,227.78,6.52961668]
[1733196385175,2.2,227.8,227.79,2.1946]
[1733196385379,2.2,227.91,227.78,6.52961668]
[1733196385579,2.2,227.9,227.87,6.52961668]
[1733196386186,2.2,227.9,227.85,6.52961668]
[1733196386982,4.3936,227.9,227.85,8.72361668]
[1733196387183,2.2,227.9,227.83,6.52961668]
[1733196389084,2.1938,227.88,227.83,8.72381668]
[1733196389383,2.2,227.9,227.83,8.72381668]
[1733196391088,2.1938,227.88,227.83,8.72381668]
[1733196391783,2.1937,227.89,227.84,2.1941]
[1733196392777,2.1938,227.88,227.84,2.1941]
[1733196393385,2.1938,227.88,227.83,6.52961668]
[1733196393386,2.1938,227.88,227.83,8.72381668]
[1733196395578,8.72961668,227.9,227.73,2.18]
[1733196395883,8.72961668,227.9,227.81,6.52961668]
[1733196395884,2.1941,227.85,227.81,6.52961668]
[1733196396187,2.18,227.84,227.81,6.52961668]
[1733196396886,4.3742,227.84,227.79,8.72421668]
[1733196397083,4.3742,227.84,227.68,4.0465]
[1733196397084,2.18,227.84,227.69,2.18]
[1733196397390,2.18,227.84,227.77,6.52961668]
[1733196397789,2.18,227.84,227.81,6.52961668]
[1733196397990,4.91865562,227.96,227.81,6.52961668]
[1733196398185,4.91865562,227.96,227.83,8.72381668]
[1733196398186,2.1938,227.88,227.83,8.72381668]
[1733196398385,2.18,227.87,227.83,8.72381668]
[1733196399486,2.194,227.86,227.81,8.72401668]
[1733196400481,2.18,227.87,227.7,4.391]
[1733196400684,2.18,227.87,227.77,6.52961668]
[1733196400685,6.52961668,227.85,227.77,6.52961668]
[1733196401089,2.1945,227.81,227.77,6.52961668]
[1733196401284,2.18,227.8,227.77,6.52961668]
[1733196403890,2.18,227.8,227.76,2.1949]
[1733196404092,2.18,227.8,227.75,6.52961668]
[1733196404292,4.3745,227.8,227.75,8.72461668]
[1733196406395,4.3745,227.8,227.75,6.52961668]
[1733196406589,4.3745,227.8,227.76,2.1949]
[1733196407493,4.3745,227.8,227.77,6.52961668]
[1733196407890,2.1945,227.81,227.79,6.52961668]
[1733196408095,2.18,227.82,227.79,6.52961668]
[1733196408397,2.18,227.82,227.81,8.72401668]
[1733196409794,2.18,227.84,227.82,2.1943]
[1733196410091,2.18,227.84,227.81,6.52961668]
[1733196411095,2.18,227.84,227.81,8.72401668]
[1733196418701,2.1946,227.8,227.72,2.1952]
[1733196418908,2.18,227.79,227.75,6.52961668]
[1733196419403,2.18,227.79,227.77,2.1948]
[1733196419805,2.18,227.79,227.77,8.72441668]
[1733196420003,2.18,227.79,227.76,2.1949]
[1733196420908,2.18,227.79,227.77,6.52961668]
[1733196421305,2.18,227.79,227.77,8.72441668]
[1733196423410,2.18,227.79,227.77,6.52961668]
[1733196425212,2.18,227.79,227.77,8.72441668]
[1733196426607,2.18,227.79,227.77,6.52961668]
[1733196429209,2.18,227.79,227.77,8.72441668]
[1733196430205,2.18,227.79,227.77,6.52961668]
[1733196432014,2.1953,227.73,227.68,2.1956]
[1733196432216,2.18,227.72,227.68,6.52961668]
[1733196432412,2.18,227.71,227.68,6.52961668]
[1733196433113,2.18,227.71,227.59,4.0485]
[1733196433415,6.52961668,227.67,227.49,2.2107416]
[1733196433714,2.18,227.66,227.62,6.52961668]
[1733196433904,2.18,227.65,227.62,6.52961668]
[1733196437023,4.0075,227.74,227.62,6.52961668]
[1733196437213,4.0075,227.74,227.56,1.3692]
[1733196437214,2.1954,227.71,227.66,6.52961668]
[1733196438415,2.1954,227.71,227.66,8.72551668]
[1733196438619,2.1955,227.7,227.64,6.52961668]
[1733196439620,6.52961668,227.72,227.64,6.52961668]
[1733196439921,2.1956,227.69,227.64,6.52961668]
[1733196440111,2.18,227.68,227.64,6.52961668]
[1733196440318,2.18,227.68,227.64,8.72561668]
[1733196442520,4.0075,227.74,227.66,6.52961668]
[1733196442521,2.18,227.67,227.66,6.52961668]
[1733196442720,2.18,227.69,227.66,6.52961668]
[1733196443118,2.6649,227.74,227.66,6.52961668]
[1733196443119,13.19,227.9,227.66,6.52961668]
[1733196443316,6.52961668,227.75,227.66,6.52961668]
[1733196443618,6.52961668,227.75,227.56,1.3692]
[1733196443619,2.18,227.74,227.68,6.52961668]
[1733196444923,2.1953,227.73,227.68,8.72521668]
[1733196445321,2.18,227.74,227.66,6.52961668]
[1733196445821,2.1954,227.72,227.66,6.52961668]
[1733196446225,6.52961668,227.73,227.66,6.52961668]
[1733196446420,6.52961668,227.73,227.64,6.52961668]
[1733196446616,2.18,227.74,227.68,6.52961668]
[1733196447214,4.3751,227.74,227.69,2.1955]
[1733196448323,4.3751,227.74,227.69,8.72511668]
[1733196449625,4.3751,227.74,227.69,2.1955]
[1733196450418,4.3751,227.74,227.67,6.52961668]
[1733196450419,2.1952,227.73,227.68,2.1957]
[1733196452822,2.18,227.74,227.66,6.52961668]
[1733196453027,2.1957,227.68,227.56,1.3692]
[1733196453223,1.3336,227.75,227.56,1.3692]
[1733196453224,2.18,227.67,227.56,1.3692]
[1733196453425,2.18,227.66,227.61,6.52961668]
[1733196453725,2.18,227.65,227.61,6.52961668]
[1733196454027,2.18,227.65,227.53,2.6791]
[1733196454028,6.52961668,227.63,227.53,2.6791]
[1733196454223,2.1966,227.59,227.54,2.197]
[1733196454425,2.18,227.58,227.54,2.197]
[1733196454626,2.18,227.58,227.55,6.52961668]
[1733196455237,2.18,227.58,227.55,8.72651668]
[1733196455629,4.3767,227.58,227.53,1.3003]
[1733196455930,2.18,227.58,227.52,6.52961668]
[1733196456232,2.18,227.58,227.49,1.3096]
[1733196456233,2.18,227.58,227.54,6.52961668]
[1733196457030,2.18,227.58,227.54,8.72661668]
[1733196457330,2.18,227.58,227.56,6.52961668]
[1733196457529,2.18,227.58,227.56,8.72641668]
[1733196457926,6.52961668,227.64,227.56,6.52961668]
[1733196458124,2.18,227.63,227.6,2.1964]
[1733196458323,2.18,227.63,227.6,6.52961668]
[1733196459130,2.18,227.63,227.61,2.1963]
[1733196461633,2.7057,227.73,227.63,2.1962]
[1733196461830,2.1957,227.68,227.63,2.1962]
[1733196462133,2.18,227.67,227.63,2.1962]
[1733196462527,2.18,227.67,227.49,1.3096]
[1733196462826,6.52961668,227.61,227.53,6.52961668]
[1733196463027,6.52961668,227.61,227.4,8.75563361]
[1733196463028,2.0,227.5,227.31,3.29575321]
[1733196463233,6.52961668,227.55,227.23,156.3770567]
[1733196463234,6.52961668,227.38,227.29,6.52961668]
[1733196463735,2.1987,227.37,227.29,6.52961668]
[1733196465026,6.52961668,227.38,227.29,6.52961668]
[1733196465535,2.18,227.4,227.3,2.1993]
[1733196465732,2.18,227.4,227.27,12.40438071]
[1733196466034,3.9648,227.49,227.3,10.22438071]
[1733196466035,2.18,227.45,227.3,10.22438071]
[1733196466235,2.1982,227.43,227.33,2.199]
[1733196466626,2.18,227.45,227.33,10.22438071]
[1733196467331,2.18,227.45,227.36,10.22438071]
[1733196468030,6.1448,227.49,227.37,2.18]
[1733196468833,2.1977,227.48,227.4,2.1983]
[1733196469028,2.18,227.49,227.37,2.18]
[1733196469626,2.18,227.49,227.42,2.1982]
[1733196470026,11.53688071,227.54,227.39,10.22438071]
[1733196470238,11.53688071,227.54,227.4,2.20014406]
[1733196470436,11.53688071,227.54,227.39,10.22438071]
[1733196470631,11.53688071,227.54,227.4,2.20013077]
[1733196470833,10.22438071,227.54,227.39,10.22438071]
[1733196471033,10.22438071,227.54,227.4,2.20015115]
[1733196471230,10.22438071,227.54,227.39,10.22438071]
[1733196471231,2.1972,227.53,227.39,10.22438071]
[1733196471437,2.1972,227.53,227.4,2.20015193]
[1733196471733,2.1972,227.53,227.39,10.22438071]
[1733196471734,2.1972,227.53,227.43,2.1981]
[1733196472045,2.1973,227.52,227.42,2.18]
[1733196473042,2.1973,227.52,227.44,2.198]
[1733196475442,2.1973,227.52,227.45,2.1979]
[1733196478648,2.1972,227.52,227.45,2.1979]
[1733196478849,2.1972,227.52,227.46,2.1978]
[1733196479147,2.18,227.55,227.42,12.40438071]
[1733196479746,2.18,227.55,227.42,12.44438071]
[1733196479943,2.1974,227.51,227.45,2.1979]
[1733196482947,2.1972,227.52,227.46,2.1977]
[1733196483340,2.1972,227.52,227.42,12.44438071]
[1733196484150,2.1972,227.52,227.46,2.1978]
[1733196484445,2.1973,227.51,227.46,2.1978]
[1733196484645,2.18,227.55,227.42,10.22438071]
[1733196484852,2.18,227.55,227.44,2.1979]
[1733196485358,2.18,227.55,227.45,2.1979]
[1733196485550,2.1974,227.51,227.45,2.1979]
[1733196486151,2.1972,227.53,227.47,2.1977]
[1733196486448,2.18,227.55,227.47,2.1977]
[1733196487048,2.18,227.55,227.42,10.22438071]
[1733196487350,2.1972,227.52,227.46,2.1978]
[1733196488344,2.18,227.55,227.43,2.22]
[1733196488550,2.1971,227.53,227.43,3.5023]
[1733196488747,2.1971,227.53,227.46,2.1978]
[1733196488947,2.1978,227.47,227.34,0.45366572]
[1733196489146,10.22438071,227.45,227.34,0.42304]
[1733196489351,2.22,227.44,227.34,0.42304]
[1733196490047,2.1983,227.42,227.36,2.1988]
[1733196490948,2.22,227.48,227.35,12.44438071]
[1733196491146,2.22,227.48,227.36,1.3812]
[1733196491344,2.22,227.48,227.36,2.7198]
[1733196491547,2.1977,227.47,227.36,2.7198]
[1733196491744,2.22,227.48,227.38,10.22438071]
[1733196492049,2.22,227.48,227.44,2.1979]
[1733196492259,2.1975,227.5,227.44,2.1979]
[1733196492454,2.22,227.52,227.44,2.1979]
[1733196492654,2.1975,227.49,227.44,2.1979]
[1733196493057,10.22438071,227.5,227.41,2.1983]
[1733196494955,2.1978,227.47,227.41,2.1983]
[1733196497559,2.1974,227.51,227.45,2.1978]
[1733196497757,2.22,227.52,227.45,2.1978]
[1733196499055,2.1975,227.5,227.45,2.1978]
[1733196500562,2.22,227.52,227.41,10.22438071]
[1733196500865,2.22,227.52,227.44,10.22438071]
[1733196501959,2.22,227.52,227.47,2.1977]
[1733196501960,4.4173,227.52,227.47,2.1977]
[1733196504959,2.22,227.52,227.44,10.22438071]
[1733196505154,2.22,227.57,227.47,10.22438071]
[1733196505961,2.22,227.57,227.5,10.22438071]
[1733196506157,2.1965,227.6,227.53,2.1971]
[1733196506459,2.22,227.6,227.53,2.1971]
[1733196507958,2.1967,227.58,227.53,2.1971]
[1733196513056,2.1966,227.59,227.54,2.197]
[1733196515664,2.1966,227.59,227.54,8.72763152]
[1733196516365,4.4165,227.6,227.55,2.1969]
[1733196516961,2.1964,227.61,227.57,2.1967]
[1733196517156,361.8331342,227.81,227.58,6.53063152]
[1733196517157,375.0231342,227.81,227.58,6.53063152]
[1733196517458,6.53063152,227.67,227.6,6.53063152]
[1733196517863,6.53063152,227.67,227.6,2.1964]
[1733196518563,2.1961,227.65,227.6,2.1964]
[1733196518762,6.53063152,227.67,227.58,6.53063152]
[1733196518962,6.53063152,227.67,227.59,2.1965]
[1733196519164,2.1961,227.64,227.59,2.1965]
[1733196519364,2.1961,227.64,227.58,6.53063152]
[1733196519565,2.1961,227.64,227.54,2.18]
[1733196519566,6.53063152,227.67,227.6,8.72703152]
[1733196519760,2.1958,227.68,227.6,6.53063152]
[1733196519967,4.3758,227.68,227.62,6.53063152]
[1733196521064,4.3758,227.68,227.62,8.72693152]
[1733196521465,2.1958,227.67,227.62,8.72693152]
[1733196522967,2.18,227.68,227.65,2.196]
[1733196523167,8.71063152,227.7,227.64,6.53063152]
[1733196524274,2.18,227.7,227.64,6.53063152]
[1733196524471,2.18,227.7,227.66,2.1959]
[1733196524670,2.18,227.7,227.64,6.53063152]
[1733196524872,10.90623152,227.7,227.65,2.196]
[1733196525067,10.90623152,227.7,227.62,6.53063152]
[1733196525068,8.71063152,227.7,227.62,6.53063152]
[1733196526771,2.1957,227.68,227.64,2.196]
[1733196526975,2.1957,227.68,227.62,6.53063152]
[1733196527569,8.71063152,227.7,227.62,6.53063152]
[1733196527771,2.1956,227.69,227.62,6.53063152]
[1733196527965,8.71063152,227.7,227.62,6.53063152]
[1733196529074,2.1957,227.68,227.63,2.1962]
[1733196534089,8.71063152,227.7,227.62,6.53063152]
[1733196534987,2.196,227.65,227.62,6.53063152]
[1733196536190,2.1959,227.66,227.62,6.53063152]
[1733196539290,2.1959,227.66,227.62,8.72683152]
[1733196542398,2.1956,227.69,227.65,2.1959]
[1733196542692,2.18,227.7,227.64,6.53063152]
[1733196542884,2.18,227.7,227.66,6.53063152]